fUSD/lending_fUSD_20240429
["ID","MTS","AMOUNT","RATE_DAILY","PERIOD"]
[324872129,1714385446422,-500.0,0.00011505,2]
[324872130,1714385446431,-500.0,0.00011505,2]
[324872131,1714385446440,-500.0,0.00011505,2]
[324872132,1714385446449,-500.0,0.00011505,2]
[324872133,1714385446458,-500.0,0.00011505,2]
[324872134,1714385446467,-6187.65,0.00011505,2]
[324872135,1714385446476,-1534.88,0.00011505,2]
[324872136,1714385446485,-500.0,0.00011505,2]
[324872137,1714385446495,-500.0,0.00011505,2]
[324872138,1714385446506,-500.0,0.00011505,2]
[324872139,1714385446515,-500.0,0.00011505,2]
[324872140,1714385446524,-500.0,0.00011505,2]
[324872141,1714385446534,-501.04143395,0.00011505,2]
[324872142,1714385446543,-500.0,0.00011505,2]
[324872143,1714385446553,-500.0,0.00011505,2]
[324872144,1714385446563,-500.0,0.00011505,2]
[324872145,1714385446572,-500.0,0.00011505,2]
[324872146,1714385446584,-1098.06,0.00011505,2]
[324872147,1714385446593,-500.0,0.00011505,2]
[324872148,1714385446602,-500.0,0.00011505,2]
[324872149,1714385446611,-500.0,0.00011505,2]
[324872150,1714385446621,-2852.44,0.00011505,2]
[324872151,1714385446633,-168.51021583,0.00011505,2]
[324872152,1714385446642,-500.0,0.00011505,2]
[324872153,1714385446651,-500.0,0.00011505,2]
[324872154,1714385446661,-7366.67,0.00011505,2]
[324872155,1714385446671,-500.0,0.00011505,2]
[324872156,1714385446680,-500.0,0.00011505,2]
[324872157,1714385446689,-343.14841052,0.00011505,2]
[324872158,1714385446698,-500.0,0.00011505,2]
[324872159,1714385446707,-194.01672326,0.00011505,2]
[324872160,1714385446716,-500.0,0.00011505,2]
[324872161,1714385446725,-500.0,0.00011505,2]
[324872162,1714385446734,-719.47,0.00011505,2]
[324872163,1714385446743,-500.0,0.00011505,2]
[324872164,1714385446753,-543.04,0.00011506,2]
[324872165,1714385446763,-500.0,0.00011506,2]
[324872166,1714385446772,-500.0,0.00011506,2]
[324872167,1714385446781,-1177.97,0.00011506,2]
[324872168,1714385446790,-153.45395554,0.00011506,2]
[324872169,1714385446799,-157.24074215,0.00011506,2]
[324872170,1714385446808,-500.0,0.00011506,2]
[324872171,1714385446817,-500.0,0.00011506,2]
[324872172,1714385446826,-157.49399249,0.00011506,2]
[324872173,1714385446836,-649.07,0.00011506,2]
[324872174,1714385446846,-525.34,0.00011506,2]
[324872175,1714385446856,-500.0,0.00011506,2]
[324872176,1714385446865,-500.0,0.00011506,2]
[324872177,1714385446874,-216.31,0.00011506,2]
[324872178,1714385446883,-169.47878325,0.00011506,2]
[324872179,1714385446893,-500.0,0.00011506,2]
[324872180,1714385446902,-500.0,0.00011506,2]
[324872181,1714385446912,-500.0,0.00011506,2]
[324872182,1714385446921,-500.0,0.00011506,2]
[324872183,1714385446931,-498.84,0.00011506,2]
[324872184,1714385446940,-500.0,0.00011506,2]
[324872185,1714385446949,-308.18820703,0.00011529,2]
[324872186,1714385446960,-2000.0,0.00011572,2]
[324872187,1714385446969,-200.0,0.00011572,2]
[324872188,1714385446978,-2000.0,0.00011572,2]
[324872189,1714385446987,-200.0,0.00011572,2]
[324872190,1714385446996,-2000.0,0.00011572,2]
[324872191,1714385447005,-200.0,0.00011572,2]
[324872192,1714385447015,-2000.0,0.00011572,2]
[324872193,1714385447024,-200.0,0.00011572,2]
[324872194,1714385447035,-5100.0,0.000116,4]
[324872195,1714385447045,-792.38,0.00011629,2]
[324872196,1714385447054,-308.18820703,0.00011653,2]
[324872197,1714385447063,-2000.0,0.00011688,2]
[324872198,1714385447072,-200.0,0.00011688,2]
[324872199,1714385447082,-2000.0,0.00011688,2]
[324872200,1714385447091,-200.0,0.00011688,2]
[324872201,1714385447101,-2000.0,0.00011688,2]
[324872202,1714385447110,-200.0,0.00011688,2]
[324872203,1714385447119,-2000.0,0.00011688,2]
[324872204,1714385447128,-200.0,0.00011688,2]
[324872205,1714385447137,-500.0,0.000117,2]
[324872206,1714385447146,-500.0,0.000117,2]
[324872207,1714385447155,-500.0,0.000117,2]
[324872208,1714385447165,-500.0,0.000117,2]
[324872209,1714385447174,-500.0,0.000117,2]
[324872210,1714385447183,-500.0,0.000117,2]
[324872211,1714385447192,-627.03,0.000117,2]
[324872212,1714385447201,-10200.0,0.000117,4]
[324872213,1714385447211,-500.0,0.00011776,2]
[324872214,1714385447220,-500.0,0.00011776,2]
[324872215,1714385447230,-500.0,0.00011776,2]
[324872216,1714385447239,-500.0,0.00011776,2]
[324872217,1714385447249,-500.0,0.00011776,2]
[324872218,1714385447259,-500.0,0.00011776,2]
[324872219,1714385447268,-500.0,0.00011776,2]
[324872220,1714385447278,-500.0,0.00011776,2]
[324872221,1714385447287,-500.0,0.00011776,2]
[324872222,1714385447297,-500.0,0.00011776,2]
[324872223,1714385447306,-500.0,0.00011776,2]
[324872224,1714385447315,-500.0,0.00011776,2]
[324872225,1714385447325,-500.0,0.00011776,2]
[324872226,1714385447334,-500.0,0.00011776,2]
[324872227,1714385447344,-500.0,0.00011776,2]
[324872228,1714385447353,-500.0,0.00011776,2]
[324872229,1714385447362,-500.0,0.00011776,2]
[324872230,1714385447371,-500.0,0.00011776,2]
[324872231,1714385447381,-500.0,0.00011776,2]
[324872232,1714385447391,-500.0,0.00011776,2]
[324872233,1714385447402,-500.0,0.00011776,2]
[324872234,1714385447412,-500.0,0.00011776,2]
[324872235,1714385447421,-589.43173862,0.00011776,2]
[324872236,1714385447432,-540.91062116,0.00011776,2]
[324872237,1714385447442,-500.0,0.00011776,2]
[324872238,1714385447453,-564.1,0.00011776,2]
[324872239,1714385447462,-500.0,0.00011776,2]
[324872240,1714385447472,-500.0,0.00011776,2]
[324872241,1714385447482,-500.0,0.00011776,2]
[324872242,1714385447491,-500.0,0.00011776,2]
[324872243,1714385447500,-500.0,0.00011776,2]
[324872244,1714385447509,-276.11223353,0.00011776,2]
[324872245,1714385447518,-503.72304937,0.00011776,2]
[324872246,1714385447527,-500.0,0.00011776,2]
[324872247,1714385447536,-500.0,0.00011776,2]
[324872248,1714385447545,-504.32794996,0.00011776,2]
[324872249,1714385447554,-159.2,0.00011776,2]
[324872250,1714385447564,-687.12,0.00011776,2]
[324872251,1714385447573,-552.1,0.00011776,2]
[324872252,1714385447583,-555.49034131,0.00011776,2]
[324872253,1714385447596,-504.40552321,0.00011776,2]
[324872254,1714385447606,-500.0,0.00011776,2]
[324872255,1714385447615,-566.22,0.00011776,2]
[324872256,1714385447625,-1031.19,0.00011776,2]
[324872257,1714385447636,-510.75,0.00011776,2]
[324872258,1714385447645,-500.0,0.00011776,2]
[324872259,1714385447654,-500.0,0.00011776,2]
[324872260,1714385447664,-500.0,0.00011776,2]
[324872261,1714385447675,-500.0,0.00011776,2]
[324872262,1714385447685,-500.0,0.00011776,2]
[324872263,1714385447694,-500.0,0.00011776,2]
[324872264,1714385447703,-500.0,0.00011776,2]
[324872265,1714385447713,-500.0,0.00011776,2]
[324872266,1714385447722,-1325.14,0.00011776,2]
[324872267,1714385447731,-308.18820703,0.00011776,2]
[324872268,1714385447740,-1403.13,0.00011777,2]
[324872269,1714385447750,-500.0,0.00011777,2]
[324872270,1714385447759,-500.0,0.00011777,2]
[324872271,1714385447769,-310.68232269,0.00011779,2]
[324872272,1714385447778,-500.0,0.00011779,2]
[324872273,1714385447788,-486.59,0.00011779,2]
[324872274,1714385447797,-500.0,0.00011779,2]
[324872275,1714385447807,-500.0,0.00011779,2]
[324872276,1714385447816,-500.0,0.00011779,2]
[324872277,1714385447826,-360.08347222,0.00011779,2]
[324872278,1714385447835,-500.0,0.00011779,2]
[324872279,1714385447844,-500.0,0.00011779,2]
[324872280,1714385447854,-500.0,0.00011779,2]
[324872281,1714385447863,-560.18,0.00011779,2]
[324872282,1714385447873,-500.0,0.00011779,2]
[324872283,1714385447882,-500.0,0.00011779,2]
[324872284,1714385447892,-500.0,0.00011779,2]
[324872285,1714385447901,-500.0,0.00011779,2]
[324872286,1714385447911,-500.0,0.00011779,2]
[324872287,1714385447920,-500.0,0.00011779,2]
[324872288,1714385447929,-150.0,0.00011779,2]
[324872289,1714385447938,-500.0,0.00011779,2]
[324872290,1714385447948,-500.0,0.00011779,2]
[324872291,1714385447957,-500.0,0.00011779,2]
[324872292,1714385448006,-500.0,0.00011779,2]
[324872293,1714385448015,-500.0,0.00011779,2]
[324872294,1714385448024,-388.38620504,0.00011779,2]
[324872295,1714385448033,-598.88,0.00011779,2]
[324872296,1714385448042,-604.29,0.00011779,2]
[324872297,1714385448051,-290.86,0.00011779,2]
[324872298,1714385448060,-209.50287488,0.00011779,2]
[324872300,1714385448069,-500.0,0.00011779,2]
[324872302,1714385448078,-406.31,0.00011779,2]
[324872304,1714385448088,-500.0,0.00011779,2]
[324872305,1714385448097,-500.0,0.00011779,2]
[324872306,1714385448106,-500.0,0.00011779,2]
[324872307,1714385448115,-618.32,0.00011779,2]
[324872308,1714385448124,-500.0,0.00011779,2]
[324872309,1714385448133,-500.0,0.00011779,2]
[324872310,1714385448141,-500.0,0.00011779,2]
[324872311,1714385448150,-500.0,0.00011779,2]
[324872312,1714385448159,-500.0,0.00011779,2]
[324872313,1714385448168,-500.0,0.00011779,2]
[324872314,1714385448178,-2811.64,0.00011779,2]
[324872315,1714385448187,-851.19,0.00011779,2]
[324872316,1714385448196,-500.0,0.00011779,2]
[324872317,1714385448205,-502.9,0.00011779,2]
[324872318,1714385448214,-500.0,0.00011779,2]
[324872319,1714385448223,-500.0,0.00011779,2]
[324872320,1714385448233,-500.0,0.00011779,2]
[324872321,1714385448242,-507.16,0.00011779,2]
[324872322,1714385448251,-500.0,0.00011779,2]
[324872323,1714385448260,-524.72,0.00011779,2]
[324872324,1714385448269,-500.0,0.00011779,2]
[324872325,1714385448278,-491.73,0.00011779,2]
[324872326,1714385448287,-500.0,0.00011779,2]
[324872327,1714385448296,-500.0,0.00011779,2]
[324872328,1714385448305,-500.0,0.00011779,2]
[324872329,1714385448314,-500.0,0.00011779,2]
[324872330,1714385448323,-1214.57,0.00011779,2]
[324872331,1714385448332,-500.0,0.00011779,2]
[324872332,1714385448341,-569.75,0.00011779,2]
[324872333,1714385448350,-1130.88,0.00011779,2]
[324872334,1714385448360,-480.11923451,0.00011779,2]
[324872335,1714385448369,-500.0,0.00011779,2]
[324872336,1714385448378,-681.23,0.00011779,2]
[324872337,1714385448387,-554.17,0.00011779,2]
[324872338,1714385448396,-500.0,0.00011779,2]
[324872339,1714385448405,-2144.16,0.00011779,2]
[324872340,1714385448414,-500.0,0.00011779,2]
[324872341,1714385448424,-500.0,0.00011779,2]
[324872342,1714385448433,-500.0,0.00011779,2]
[324872343,1714385448442,-500.0,0.00011779,2]
[324872344,1714385448451,-1240.19,0.00011779,2]
[324872345,1714385448460,-900.79,0.00011779,2]
[324872346,1714385448469,-500.0,0.00011779,2]
[324872347,1714385448478,-500.0,0.00011779,2]
[324872348,1714385448487,-565.99,0.00011779,2]
[324872349,1714385448496,-1055.22,0.00011779,2]
[324872350,1714385448505,-565.59,0.00011779,2]
[324872351,1714385448516,-500.0,0.00011779,2]
[324872352,1714385448525,-500.0,0.00011779,2]
[324872353,1714385448534,-500.0,0.00011779,2]
[324872354,1714385448543,-513.77,0.00011779,2]
[324872355,1714385448554,-618.39,0.00011779,2]
[324872356,1714385448563,-626.62,0.00011779,2]
[324872357,1714385448572,-500.0,0.00011779,2]
[324872358,1714385448583,-500.0,0.00011779,2]
[324872359,1714385448594,-500.0,0.00011779,2]
[324872360,1714385448603,-500.0,0.00011779,2]
[324872361,1714385448611,-500.0,0.00011779,2]
[324872362,1714385448621,-6070.86,0.00011779,2]
[324872363,1714385448632,-500.0,0.00011779,2]
[324872364,1714385448641,-1505.8,0.00011779,2]
[324872365,1714385448650,-500.0,0.00011779,2]
[324872366,1714385448660,-1147.15,0.00011779,2]
[324872367,1714385448670,-500.0,0.00011779,2]
[324872368,1714385448680,-500.0,0.00011779,2]
[324872369,1714385448689,-541.66,0.00011779,2]
[324872370,1714385448699,-500.0,0.00011779,2]
[324872371,1714385448709,-500.0,0.00011779,2]
[324872372,1714385448718,-500.0,0.00011779,2]
[324872373,1714385448727,-861.65,0.00011779,2]
[324872374,1714385448736,-500.0,0.00011779,2]
[324872375,1714385448747,-1359.38,0.00011779,2]
[324872376,1714385448757,-500.0,0.00011779,2]
[324872377,1714385448766,-1187.14,0.00011779,2]
[324872378,1714385448775,-909.17,0.00011779,2]
[324872379,1714385448786,-1002.37,0.00011779,2]
[324872380,1714385448796,-639.79,0.00011779,2]
[324872381,1714385448805,-500.0,0.00011779,2]
[324872382,1714385448814,-242.9,0.00011779,2]
[324872383,1714385448824,-500.0,0.00011779,2]
[324872384,1714385448833,-500.0,0.00011779,2]
[324872385,1714385448842,-500.0,0.00011779,2]
[324872386,1714385448851,-500.0,0.00011779,2]
[324872387,1714385448860,-500.0,0.00011779,2]
[324872388,1714385448869,-1262.16,0.00011779,2]
[324872389,1714385448879,-500.0,0.00011779,2]
[324872390,1714385448887,-500.0,0.00011779,2]
[324872391,1714385448897,-500.0,0.00011779,2]
[324872392,1714385448906,-500.0,0.00011779,2]
[324872393,1714385448915,-500.0,0.00011779,2]
[324872394,1714385448925,-500.0,0.00011779,2]
[324872395,1714385448934,-500.0,0.00011779,2]
[324872396,1714385448943,-500.0,0.00011779,2]
[324872397,1714385448952,-500.0,0.00011779,2]
[324872398,1714385448962,-500.0,0.00011779,2]
[324872399,1714385448971,-500.0,0.00011779,2]
[324872400,1714385448980,-500.0,0.00011779,2]
[324872401,1714385448989,-500.0,0.00011779,2]
[324872402,1714385448999,-7118.79,0.00011779,2]
[324872403,1714385449009,-500.0,0.00011779,2]
[324872404,1714385449019,-500.0,0.00011779,2]
[324872405,1714385449028,-500.0,0.00011779,2]
[324872406,1714385449037,-500.0,0.00011779,2]
[324872407,1714385449047,-500.0,0.00011779,2]
[324872408,1714385449056,-500.0,0.00011779,2]
[324872409,1714385449065,-6187.65,0.00011779,2]
[324872410,1714385449074,-1534.88,0.00011779,2]
[324872411,1714385449083,-500.0,0.00011779,2]
[324872412,1714385449092,-500.0,0.00011779,2]
[324872413,1714385449101,-500.0,0.00011779,2]
[324872414,1714385449110,-500.0,0.00011779,2]
[324872415,1714385449119,-408.28,0.00011779,2]
[324872416,1714385449128,-500.0,0.00011779,2]
[324872417,1714385449140,-500.0,0.00011779,2]
[324872418,1714385449149,-500.0,0.00011779,2]
[324872419,1714385449158,-1098.06,0.00011779,2]
[324872420,1714385449167,-500.0,0.00011779,2]
[324872421,1714385449178,-500.0,0.00011779,2]
[324872422,1714385449189,-2852.44,0.00011779,2]
[324872423,1714385449198,-500.0,0.00011779,2]
[324872424,1714385449208,-500.0,0.00011779,2]
[324872425,1714385449218,-4980.26057826,0.00011779,2]
[324872426,1714385449445,-695.2378625,0.00011779,2]
[324872427,1714385450214,-500.6964493,0.00011779,2]
[324872428,1714385450382,-1190.47510994,0.00011779,2]
[324872429,1714385450392,-500.0,0.00011779,2]
[324872430,1714385450402,-500.0,0.00011779,2]
[324872431,1714385450411,-315.06629006,0.00011779,2]
[324872432,1714385450430,-184.93370994,0.00011779,2]
[324872433,1714385450440,-500.0,0.00011779,2]
[324872434,1714385450449,-719.47,0.00011779,2]
[324872435,1714385450459,-543.04,0.0001178,2]
[324872436,1714385450468,-500.0,0.0001178,2]
[324872437,1714385450478,-500.0,0.0001178,2]
[324872438,1714385450487,-1177.97,0.0001178,2]
[324872439,1714385450497,-500.0,0.0001178,2]
[324872440,1714385450507,-280.60558112,0.0001178,2]
[324872441,1714385450520,-219.39441888,0.0001178,2]
[324872442,1714385450529,-525.34,0.0001178,2]
[324872443,1714385450539,-500.0,0.0001178,2]
[324872444,1714385450548,-126.45454713,0.0001178,2]
[324872445,1714385450586,-117.41545287,0.0001178,2]
[324872446,1714385450596,-435.27,0.0001178,2]
[324872447,1714385450607,-500.0,0.0001178,2]
[324872448,1714385450617,-500.0,0.0001178,2]
[324872449,1714385450628,-500.0,0.0001178,2]
[324872450,1714385450636,-500.0,0.0001178,2]
[324872451,1714385450646,-1208.89454713,0.000118,4]
[324872452,1714385450658,-6634.50000001,0.000118,4]
[324872453,1714385450671,-7556.60545286,0.000118,4]
[324872454,1714385450682,-164.63,0.00011874,2]
[324872455,1714385450691,-669.90531219,0.00011899,2]
[324872456,1714385450701,-170.66355813,0.00011899,2]
[324872457,1714385450710,-174.2168668,0.00011899,2]
[324872458,1714385450719,-176.7536553,0.000119,2]
[324872459,1714385450729,-222.00545377,0.000119,2]
[324872460,1714385450738,-308.18820703,0.000119,2]
[324872461,1714385450747,-20500.0,0.000119,4]
[324872462,1714385450756,-189.73207955,0.000119,2]
[324872463,1714385450767,-206.71908165,0.000119,2]
[324872464,1714385450777,-409.06,0.00011918,2]
[324872465,1714385450787,-150.0,0.0001197,3]
[324872466,1714385450796,-465.32733273,0.0001198,2]
[324872467,1714385450814,-34.67266727,0.0001198,2]
[324872468,1714385450823,-500.0,0.0001198,2]
[324872469,1714385450833,-500.0,0.0001198,2]
[324872470,1714385450842,-500.0,0.0001198,2]
[324872471,1714385450852,-500.0,0.0001198,2]
[324872472,1714385450861,-500.0,0.0001198,2]
[324872473,1714385450870,-500.0,0.0001198,2]
[324872474,1714385450879,-6.31905226,0.0001198,2]
[324872475,1714385450891,-493.68094774,0.0001198,2]
[324872476,1714385450901,-500.0,0.0001198,2]
[324872477,1714385450910,-500.0,0.0001198,2]
[324872478,1714385450920,-26.2691764,0.0001198,2]
[324872479,1714385451179,-473.7308236,0.0001198,2]
[324872480,1714385451189,-500.0,0.0001198,2]
[324872481,1714385451199,-500.0,0.0001198,2]
[324872482,1714385451208,-500.0,0.0001198,2]
[324872483,1714385451217,-500.0,0.0001198,2]
[324872484,1714385451227,-500.0,0.0001198,2]
[324872485,1714385451237,-500.0,0.0001198,2]
[324872486,1714385451246,-500.0,0.0001198,2]
[324872487,1714385451256,-500.0,0.0001198,2]
[324872488,1714385451267,-500.0,0.0001198,2]
[324872489,1714385451276,-500.0,0.0001198,2]
[324872490,1714385451285,-500.0,0.0001198,2]
[324872491,1714385451295,-500.0,0.0001198,2]
[324872492,1714385451304,-500.0,0.0001198,2]
[324872493,1714385451313,-500.0,0.0001198,2]
[324872494,1714385451323,-635.5,0.0001198,2]
[324872495,1714385451332,-669.90531217,0.0001199,2]
[324872496,1714385451341,-2440.13,0.0001199,2]
[324872497,1714385451352,-631.0,0.00011996,2]
[324872498,1714385451364,-185655.24371512,0.00011996,2]
[324872499,1714385451678,-867.53175396,0.00011996,2]
[324872500,1714385451690,-567.4896255,0.00011996,2]
[324872501,1714385451702,-4388.48410001,0.00011996,2]
[324872502,1714385451714,-500.26700107,0.00011996,2]
[324872503,1714385451725,-3237.04088815,0.00011996,2]
[324872504,1714385451737,-6442.33172909,0.00011996,2]
[324872505,1714385451750,-20508.51,0.00011996,2]
[324872506,1714385451849,-158.89857859,0.00011231,2]
[324872507,1714385451858,-281.31619591,0.00011996,2]
[324872508,1714385451870,-1411.67549481,0.00011996,2]
[324872509,1714385452040,-9404.43720213,0.00011996,2]
[324872510,1714385452290,-2118.30271669,0.00011996,2]
[324872511,1714385452301,-4592.1711998,0.00011996,2]
[324872512,1714385452314,-3399.39625553,0.00011996,2]
[324872513,1714385452325,-978.66,0.00011996,2]
[324872514,1714385452336,-295.47578606,0.00011996,2]
[324872517,1714386181744,-3082.64415002,8.88e-05,2]
[324872518,1714386181764,-684.59558669,8.881e-05,2]
[324872519,1714386227885,232.76026329,8.617e-05,2]
[324872597,1714386633507,-155.0,8.614e-05,2]
[324872598,1714386633517,-155.0,8.614e-05,2]
[324872599,1714386633526,-1781.83925523,8.615e-05,2]
[324872600,1714386633537,-162.06973671,8.617e-05,2]
[324872601,1714386633546,-2678.60525573,8.881e-05,2]
[324872602,1714386633555,-2056.39,0.00010243,2]
[324872603,1714386633565,-19032.32,0.00010299,2]
[324872605,1714386633574,-164.63,0.00010299,2]
[324872606,1714386633583,-1274.58,0.00010319,2]
[324872607,1714386633592,-549.51,0.00010337,2]
[324872608,1714386633602,-167.41,0.00010364,2]
[324872609,1714386633611,-158.6415,0.00010367,2]
[324872610,1714386633620,-23363.04,0.00010467,2]
[324872611,1714386633629,-254.06,0.00010494,2]
[324872612,1714386633639,-299.99,0.00010494,2]
[324872613,1714386633648,-165.27,0.00010506,2]
[324872614,1714386633657,-972.47,0.00010735,2]
[324872615,1714386633667,-394.83,0.00010881,2]
[324872616,1714386633676,-150.0,0.00010959,2]
[324872617,1714386633686,-2450.0,0.00011,3]
[324872618,1714386633695,-49429.11901753,0.00011,2]
[324872619,1714386633704,-229.16,0.00011001,2]
[324872620,1714386633713,-1819.66,0.00011096,2]
[324872621,1714386633722,-150.99,0.00011136,2]
[324872622,1714386633731,-3346.65,0.00011136,2]
[324872623,1714386633740,-500.0,0.00011231,2]
[324872624,1714386633750,-500.0,0.00011231,2]
[324872625,1714386633759,-631.26,0.00011231,2]
[324872626,1714386633769,-500.0,0.00011231,2]
[324872627,1714386633778,-500.0,0.00011231,2]
[324872628,1714386633787,-500.0,0.00011231,2]
[324872629,1714386633797,-150.45,0.0001137,2]
[324872630,1714386633807,-156.36,0.00011493,2]
[324872631,1714386633816,-500.0,0.00011502,2]
[324872632,1714386633825,-615.86833218,0.00011502,2]
[324872633,1714386633835,-500.0,0.00011502,2]
[324872634,1714386633845,-1052.69,0.00011502,2]
[324872635,1714386633854,-500.0,0.00011502,2]
[324872636,1714386633863,-500.0,0.00011502,2]
[324872637,1714386633873,-500.0,0.00011502,2]
[324872638,1714386633882,-500.0,0.00011502,2]
[324872639,1714386633891,-500.0,0.00011502,2]
[324872640,1714386633900,-600.51,0.00011502,2]
[324872641,1714386633910,-500.0,0.00011502,2]
[324872642,1714386633919,-500.0,0.00011502,2]
[324872643,1714386633928,-500.0,0.00011502,2]
[324872644,1714386633937,-1129.72,0.00011502,2]
[324872645,1714386633947,-896.4,0.00011502,2]
[324872646,1714386633961,-500.0,0.00011502,2]
[324872647,1714386633970,-1382.62,0.00011502,2]
[324872648,1714386633979,-1011.76,0.00011502,2]
[324872649,1714386633988,-637.45,0.00011502,2]
[324872650,1714386633998,-500.0,0.00011502,2]
[324872651,1714386634007,-500.0,0.00011502,2]
[324872652,1714386634016,-1287.96,0.00011502,2]
[324872653,1714386634026,-273.68798314,0.00011502,2]
[324872654,1714386634037,-500.0,0.00011502,2]
[324872655,1714386634047,-500.0,0.00011502,2]
[324872656,1714386634056,-500.0,0.00011502,2]
[324872657,1714386634065,-500.0,0.00011502,2]
[324872658,1714386634074,-500.0,0.00011502,2]
[324872659,1714386634083,-1470.93,0.00011502,2]
[324872660,1714386634093,-6214.85,0.00011502,2]
[324872661,1714386634102,-304.61,0.00011502,2]
[324872662,1714386634111,-501.04143395,0.00011502,2]
[324872663,1714386634121,-505.10599865,0.00011502,2]
[324872664,1714386634130,-500.0,0.00011502,2]
[324872665,1714386634140,-500.0,0.00011502,2]
[324872666,1714386634149,-500.0,0.00011502,2]
[324872667,1714386634158,-508.64678204,0.00011502,2]
[324872668,1714386634167,-500.0,0.00011502,2]
[324872669,1714386634176,-500.0,0.00011502,2]
[324872670,1714386634186,-2733.59,0.00011502,2]
[324872671,1714386634195,-500.0,0.00011502,2]
[324872672,1714386634204,-500.0,0.00011502,2]
[324872673,1714386634212,-500.0,0.00011502,2]
[324872674,1714386634221,-500.0,0.00011503,2]
[324872675,1714386634230,-500.0,0.00011503,2]
[324872676,1714386634239,-500.0,0.00011503,2]
[324872677,1714386634248,-500.0,0.00011503,2]
[324872678,1714386634257,-500.0,0.00011503,2]
[324872679,1714386634266,-500.0,0.00011503,2]
[324872680,1714386634275,-500.0,0.00011503,2]
[324872681,1714386634286,-500.0,0.00011503,2]
[324872682,1714386634295,-500.0,0.00011503,2]
[324872683,1714386634304,-500.0,0.00011503,2]
[324872684,1714386634313,-500.0,0.00011503,2]
[324872685,1714386634323,-500.0,0.00011503,2]
[324872686,1714386634332,-500.0,0.00011503,2]
[324872687,1714386634341,-500.0,0.00011503,2]
[324872688,1714386634350,-500.0,0.00011503,2]
[324872689,1714386634359,-500.0,0.00011503,2]
[324872690,1714386634369,-500.0,0.00011503,2]
[324872691,1714386634378,-500.0,0.00011503,2]
[324872692,1714386634387,-500.0,0.00011503,2]
[324872693,1714386634396,-501.63594401,0.00011503,2]
[324872694,1714386634406,-500.0,0.00011503,2]
[324872695,1714386634417,-500.0,0.00011503,2]
[324872696,1714386634426,-500.0,0.00011503,2]
[324872697,1714386634435,-500.0,0.00011503,2]
[324872698,1714386634444,-500.0,0.00011503,2]
[324872699,1714386634454,-500.0,0.00011503,2]
[324872700,1714386634463,-500.0,0.00011503,2]
[324872701,1714386634472,-500.0,0.00011503,2]
[324872702,1714386634481,-500.0,0.00011503,2]
[324872703,1714386634490,-500.0,0.00011503,2]
[324872704,1714386634500,-500.0,0.00011503,2]
[324872705,1714386634509,-500.0,0.00011503,2]
[324872706,1714386634518,-150.0,0.00011503,2]
[324872707,1714386634527,-500.0,0.00011503,2]
[324872708,1714386634538,-500.0,0.00011503,2]
[324872709,1714386634547,-500.0,0.00011503,2]
[324872710,1714386634555,-500.0,0.00011503,2]
[324872711,1714386634565,-504.51280543,0.00011503,2]